Cogmind - Beta 16 @@@ ROGUE MODE // 2025.11.08 @ 22:13:32 Player: keygenpie Result: Destroyed by X-57 Shotgunner with High-powered Shotgun Performance ------------- Evolutions (2) 1000 Regions Visited (5) 1000 Robots Destroyed (53) 265 Value Destroyed (1134) 1134 Prototype IDs (6) 120 Alien Tech Used (0) 0 Bonus (-108) -108 TOTAL SCORE: 3411 Bonus ------- High Alert Combat Kills 15 Friendly Fire -123 Cogmind --------- Core Integrity 0/550 Matter 500/500 Energy 95/100 System Corruption 0% Temperature Cool (0) Movement Treading (170) Location -8/Materials Parts ------- > --- POWER (2) -------- (None) > --- PROPULSION (3) --- Armored Treads Titanium Leg > --- UTILITY (3) ------ High-capacity Matter Pod > --- WEAPON (3) ------- Particle Gun Advanced Beam Rifle Heavy Hammer > --- INVENTORY (5) ---- Compact Wheel Compact Matter Pod (47) Peak State ------------ > --- POWER ------------ Light Deuterium Engine Light Nuclear Core > --- PROPULSION ------- Aluminum Leg Carbon-fiber Leg Titanium Leg > --- UTILITY ---------- High-capacity Matter Pod Reflective Plating > --- WEAPON ----------- Advanced Beam Rifle Advanced Beam Rifle Advanced Beam Rifle > --- INVENTORY -------- Armored Treads Compact Wheel Compact Matter Pod Particle Gun Heavy Hammer [Rating: 30] Favorites ----------- Power Light Nuclear Core Engine Light Ion Engine Power Core Light Nuclear Core Propulsion Light Treads Treads Light Treads Leg Aluminum Leg Wheel Compact Wheel Flight Unit Flight Unit Utility Small Storage Unit Device Weight Redist. System Storage Small Storage Unit Protection Light Armor Plating Weapon Particle Gun Energy Gun Particle Gun Energy Cannon Heavy Particle Cannon Ballistic Gun Gauss Rifle Ballistic Cannon Bore Cannon Launcher Improved Grenade Launcher Impact Weapon Hammer Special Melee Weapon Datajack Build | -11 -10 -10 -10 -9 -8 ------- Run | Yrd Mat Min Exi Min Mat Slots Evolved 4 | . . . . . 4 Power 1 | . . . . . 1 Propulsion 1 | . . . . . 1 Utility 1 | . . . . . 1 Weapon 1 | . . . . . 1 Parts Attached 50 | 6 8 6 . 2 28 Power 7 | 1 1 1 . . 4 Engine 3 | 1 . . . . 2 Core 4 | . 1 1 . . 2 Reactor . | . . . . . . Propulsion 17 | 2 2 3 . 1 9 Treads 3 | . 2 . . . 1 Leg 7 | 2 . . . . 5 Wheel 3 | . . . . . 3 Hover . | . . . . . . Flight 4 | . . 3 . 1 . Utility 7 | 1 1 1 . . 4 Device 3 | . . 1 . . 2 Storage 2 | 1 . . . . 1 Processor . | . . . . . . Hackware . | . . . . . . Protection 2 | . 1 . . . 1 Artifact . | . . . . . . Weapon 19 | 2 4 1 . 1 11 Energy Gun 9 | 2 3 . . . 4 Energy Cannon 1 | . . . . . 1 Ballistic Gun 2 | . . . . . 2 Ballistic Cannon 1 | . . 1 . . . Launcher 3 | . . . . 1 2 Special Weapon . | . . . . . . Impact Weapon 2 | . . . . . 2 Slashing Weapon . | . . . . . . Piercing Weapon . | . . . . . . Special Melee Weapon 1 | . 1 . . . . Unidentified Prototypes 1 | . . . . . 1 Parts Lost 25 | . 2 . . 4 19 Power 5 | . 1 . . 1 3 Propulsion 8 | . . . . 2 6 Utility 4 | . . . . . 4 Weapon 8 | . 1 . . 1 6 Highest Loss Streak 9 | . 2 . . 4 9 To Critical Strikes 1 | . . . . . 1 Average Backups 4 | 2 6 5 5 4 2 Power . | . 1 . . . . Propulsion . | 1 . . 1 1 . Utility 1 | . 2 2 1 1 . Weapon 2 | . 2 2 3 2 1 Tool/Special . | . . . . . . Unused Backups 6 | . 3 1 . . 2 Power 1 | . 1 . . . . Propulsion 1 | . . . . . 1 Utility 2 | . . 1 . . 1 Weapon 2 | . 2 . . . . Tool/Special . | . . . . . . Average Slot Usage (%) 82 | . 94 96 100 96 64 Core 10 | . 12 14 14 14 6 Treads 12 | . 24 12 . . . Leg 6 | . 4 . . . 13 Wheel 2 | . . . . . 6 Flight 2 | . . 15 28 24 . Device 3 | . . 7 14 14 6 Storage 11 | . 14 14 14 14 8 Protection 5 | . 8 3 . . 1 Energy Gun 15 | . 21 14 14 14 9 Special Melee Weapon 5 | . 6 14 14 10 . Peak Build Rating 30 | 6 11 15 12 13 30 Average Rating 12 | 4 9 11 12 11 17 On Entrance 8 | . 6 11 12 12 7 Avg Prop Armor Cover (%) 9 | . . . . . 9 Naked Turns . | . . . . . . Heaviest Build 26 | 10 19 19 14 14 26 Greatest Support 54 | 20 40 40 14 14 54 Greatest Overweight (x) 4 | 1 . 1 . . 4 Average Overweight (x) . | . . . . . . Largest Inventory Capacity 8 | 8 8 8 8 8 8 Average Capacity 7 | 6 8 8 8 8 5 Most Carried 8 | 4 8 8 8 8 8 Average Carried 5 | 2 6 7 8 7 4 Final Capacity 8 | 8 8 8 8 8 5 Final Carried 8 | 4 7 8 8 6 2 Class Distribution -------------------- 74% | Mutant 17% | Scavenger-Mutant 3% | Scavenger-Skirmisher Dominant Class ---------------- Mutant | -10/Materials Scavenger-Mutant | -10/Mines Scavenger-Mutant | -10/Exiles Scavenger-Mutant | -9/Mines Mutant | -8/Materials Resources | -11 -10 -10 -10 -9 -8 ----------- Run | Yrd Mat Min Exi Min Mat Matter Collected 1194 | 228 299 53 . . 614 Remotely . | . . . . . . Salvage Created 1418 | . 430 124 . 11 853 Parts 98 | . 25 13 . 3 57 Haulers Intercepted 2 | . 1 . . . 1 Recyclers Shooed 3 | . 1 . . . 2 Parts Field Recycled . | . . . . . . Retrieved Matter . | . . . . . . Parts Self-Destructed . | . . . . . . Prevented . | . . . . . . Parts Restored . | . . . . . . Kills | -11 -10 -10 -10 -9 -8 ------- Run | Yrd Mat Min Exi Min Mat Combat Hostiles Destroyed 39 | . 8 9 . 2 20 Melee 2 | . . . . . 2 Guns 21 | . 8 8 . . 5 Cannons 2 | . . . . . 2 AOE 12 | . . . . 2 10 Classes Destroyed 11 | . 5 . . . 6 Worker 5 | . 2 . . . 3 Builder 3 | . . . . . 3 Hauler 2 | . 1 . . . 1 Recycler 1 | . . . . . 1 Watcher 2 | . 2 . . . . Swarmer 21 | . 3 9 . 2 7 Grunt 12 | . 5 . . . 7 Brawler 1 | . . . . . 1 Sentry 3 | . . . . . 3 Hunter 1 | . . . . . 1 Heavy 1 | . . . . . 1 Thug 1 | . . . . . 1 Best Kill Streak 8 | . 3 3 . 2 8 Combat Bots Only 6 | . 3 3 . 2 6 Max Kills in Single Turn 5 | . 1 1 . 2 5 Gunslinging . | . . . . . . Exploded 4 | . . . . 2 4 Melee 1 | . . . . . 1 Uniques/NPCs Destroyed . | . . . . . . Combat | -11 -10 -10 -10 -9 -8 -------- Run | Yrd Mat Min Exi Min Mat Hostile Shots Fired 336 | . 32 47 . 8 249 Missed 113 | . 8 14 . . 91 Hits 223 | . 24 33 . 8 158 Melee 2 | . . . . . 2 Projectile 221 | . 24 33 . 8 156 AOE 3 | . . . . 3 . Critical Strikes 8 | . . 1 . . 7 Damage Taken 3306 | . 493 263 . 194 2356 Core 781 | . 167 57 . 1 556 Absorbed by Shields . | . . . . . . Ignored by Resistances 2 | . . . . . 2 Core Remaining (%) 55 | 100 . . . 10 . Volleys Fired 147 | . 54 29 . 2 62 Largest 3 | . 2 1 . 2 3 Hottest 183 | . 105 65 . 98 183 Shots Fired 223 | . 83 29 . 3 108 Gun 177 | . 83 29 . 2 63 Cannon 38 | . . . . . 38 Launcher 8 | . . . . 1 7 Special . | . . . . . . Kinetic 38 | . . . . . 38 Thermal 177 | . 83 29 . 2 63 Explosive 8 | . . . . 1 7 Electromagnetic . | . . . . . . Robot Hit Streak 12 | . 12 3 . 1 6 Robot Miss Streak 9 | . 3 3 . 2 9 Penetration Max 1 | . . . . . 1 Secondary Targets 1 | . 1 . . . . Max Gunslinging Chain 1 | . 1 . . . . Shots Hit Robots 142 | . 57 19 . 1 65 Core Hits 72 | . 21 8 . 2 41 Critical Kills 5 | . . . . . 5 Critical Parts Destroyed 5 | . . . . . 5 Critical Strikes 11 | . . 1 . . 10 Burn 1 | . . 1 . . . Meltdown 1 | . . . . . 1 Destroy 6 | . . . . . 6 Smash 3 | . . . . . 3 Melee Attacks 21 | . 3 5 . . 13 Impact 13 | . . . . . 13 Slashing . | . . . . . . Piercing . | . . . . . . Sneak Attacks 6 | . 3 1 . . 2 Combat Hostiles . | . . . . . . Follow-up Attacks . | . . . . . . Damage Inflicted 3834 | 2 679 265 . 120 2768 Guns 1709 | . 679 265 . . 765 Cannons 358 | . . . . . 358 Explosions 1420 | . . . . 120 1300 Melee 345 | . . . . . 345 Ramming 2 | 2 . . . . . Kinetic 428 | . . . . . 428 Thermal 1639 | . 679 265 . . 695 Explosive 1420 | . . . . 120 1300 Electromagnetic . | . . . . . . Impact 345 | . . . . . 345 Slashing . | . . . . . . Piercing . | . . . . . . Highest Corruption . | . . . . . . Average Corruption . | . . . . . . Corruption Purged . | . . . . . . Corruption Blocked . | . . . . . . Overload Shots . | . . . . . . Overflow Damage 169 | . 57 . . . 112 Projectiles 20 | . . . . . 20 Explosions 110 | . 57 . . . 53 Melee 39 | . . . . . 39 Knockbacks 4 | . . . . . 4 Impact 1 | . . . . . 1 Kinetic 3 | . . . . . 3 Secondary . | . . . . . . Self-Inflicted Damage 349 | . 215 . . . 134 Shots 6 | . 2 . . . 4 Rammed . | . . . . . . Targets Rammed 1 | 1 . . . . . Kicked 1 | 1 . . . . . Crushed . | . . . . . . Highest Temperature 320 | . 231 320 . 61 316 Average Temperature 88 | . 65 141 . 30 88 Received Heat Transfer 807 | . 132 . . . 675 Effects 4 | . . 2 . . 2 Energy Bleed 1 | . . . . . 1 Interference 2 | . . 2 . . . Damage (minor) 1 | . . . . . 1 Siege Activations . | . . . . . . Martial Activations . | . . . . . . Shielding Activations . | . . . . . . Robots Disrupted . | . . . . . . Combat Hostiles . | . . . . . . Robots Corrupted 1 | . . . . . 1 Combat Hostiles . | . . . . . . Parts Fried 2 | . . . . . 2 Impact Corruptions 2 | . . . . . 2 Robots Melted 2 | . . 1 . . 1 Combat Hostiles 2 | . . 1 . . 1 Parts Melted 7 | . 3 2 . . 2 Heat Transferred 3650 | . 1578 740 . . 1332 Parts Sabotaged . | . . . . . . Parts Stolen . | . . . . . . Parts Stripped . | . . . . . . Power Chain Reactions . | . . . . . . Alert | -11 -10 -10 -10 -9 -8 ------- Run | Yrd Mat Min Exi Min Mat Maximum Alert Level 2 | . . . . . 2 Low Security (%) 82 | 100 100 100 . 100 54 Level 1 16 | . . . . . 43 Level 2 . | . . . . . 2 Level 3 . | . . . . . . Level 4 . | . . . . . . Level 5 . | . . . . . . High Security . | . . . . . . Max Security . | . . . . . . Peak Influence 412 | . 122 123 . 59 412 Initial 14 | . . 12 . . 14 Average 93 | . 25 77 . 13 194 Influence Increases 1474 | . 344 221 . 59 850 Destroy 0b10 Robot/C 780 | . 160 180 . 40 400 Destroy 0b10 Robot/NC 65 | . 25 . . . 40 Destroy Leader 178 | . 46 30 . 10 92 Allied During Kill 11 | . . 11 . . . Trap Triggered on 0b10 30 | . . . . . 30 Successful Hack 26 | . 26 . . . . Disable Machine 75 | . 30 . . . 45 Destroy Structure 99 | . 27 . . 9 63 Partial Spotted 15 | . . . . . 15 Lose Combat Pursuer 195 | . 30 . . . 165 Influence Decreases 1084 | . 311 151 103 20 499 Entered New Map 149 | . . 21 103 . 25 Time Decay 705 | . 291 130 . . 284 Lost Part 230 | . 20 . . 20 190 Squads Dispatched 7 | . 1 . . . 6 Investigation 2 | . 1 . . . 1 Extermination . | . . . . . . Reinforcement 5 | . . . . . 5 Assault . | . . . . . . Garrison . | . . . . . . Intercept . | . . . . . . Searches Triggered . | . . . . . . Construction Impeded 2 | . . . . . 2 Haulers Reinforced . | . . . . . . Active Scanning Responses . | . . . . . . Cargo Convoy Interrupts . | . . . . . . Stealth | -11 -10 -10 -10 -9 -8 --------- Run | Yrd Mat Min Exi Min Mat Distress Signals 1 | . 1 . . . . Communications Jammed . | . . . . . . Distress Signals . | . . . . . . Times Spotted 62 | . 16 8 . 5 33 Peak Tracking Total 7 | . 5 3 . 5 7 Tactical Retreats 10 | . 2 . . . 8 Traps | -11 -10 -10 -10 -9 -8 ------- Run | Yrd Mat Min Exi Min Mat Traps Triggered 1 | . 1 . . . . Indirectly . | . . . . . . Trap Hack Attempts . | . . . . . . Triggered . | . . . . . . Disarmed . | . . . . . . Reprogrammed . | . . . . . . Reused 3 | . . . . . 3 Traps Extracted . | . . . . . . Installed 3 | . . . . . 3 Triggered 3 | . . . . . 3 Most Traps Carried 3 | . . 3 3 3 3 Machines | -11 -10 -10 -10 -9 -8 ---------- Run | Yrd Mat Min Exi Min Mat Machines Disabled 5 | . 2 . . . 3 Max in Single Turn 2 | . 2 . . . 1 Machines Repaired . | . . . . . . Machines Dismantled . | . . . . . . Machines Sabotaged . | . . . . . . Overloaded Fab Kills . | . . . . . . Hacking | -11 -10 -10 -10 -9 -8 --------- Run | Yrd Mat Min Exi Min Mat Machines Accessed 8 | . 7 . . . 1 Terminals 7 | . 6 . . . 1 Fabricators . | . . . . . . Repair Stations . | . . . . . . Recycling Units 1 | . 1 . . . . Scanalyzers . | . . . . . . Garrison Access . | . . . . . . Total Hacks 21 | . 19 . . . 2 Successful 10 | . 10 . . . . Failed 11 | . 9 . . . 2 Catastrophic . | . . . . . . Database Lockouts . | . . . . . . Manual . | . . . . . . Terminals 19 | . 17 . . . 2 Fabricators . | . . . . . . Repair Stations . | . . . . . . Recycling Units 2 | . 2 . . . . Scanalyzers . | . . . . . . Garrison Access . | . . . . . . Terminal Hacks 8 | . 8 . . . . Record 1 | . 1 . . . . Prototype ID Bank 3 | . 3 . . . . Emergency Access Points 2 | . 2 . . . . Alert Level 1 | . 1 . . . . Dispatch Records 1 | . 1 . . . . Fabricator Hacks . | . . . . . . Repair Station Hacks . | . . . . . . Recycling Unit Hacks 2 | . 2 . . . . Report Inventory 1 | . 1 . . . . Retrieve Components 1 | . 1 . . . . Scanalyzer . | . . . . . . Garrison Access Hacks . | . . . . . . Unauthorized Hacks . | . . . . . . Terminals . | . . . . . . Fabricators . | . . . . . . Repair Stations . | . . . . . . Recycling Units . | . . . . . . Scanalyzers . | . . . . . . Garrison Access . | . . . . . . Data Cores Recovered . | . . . . . . Used . | . . . . . . Hacking Detections 7 | . 6 . . . 1 Full Trace Events 1 | . . . . . 1 Feedback Events . | . . . . . . Feedback Blocked . | . . . . . . Robot Schematics Acquired . | . . . . . . Robots Built . | . . . . . . Authchips . | . . . . . . Time . | . . . . . . Total Robot Build Rating . | . . . . . . Part Schematics Acquired . | . . . . . . Parts Built . | . . . . . . Authchips . | . . . . . . Time . | . . . . . . Total Part Build Rating . | . . . . . . Part Studies Acquired . | . . . . . . Parts Repaired . | . . . . . . Time . | . . . . . . Parts Recycled . | . . . . . . Recycled Matter . | . . . . . . Retrieved Matter . | . . . . . . Retrieved Components 9 | . 9 . . . . Parts Scanalyzed . | . . . . . . Part Schematics Acquired . | . . . . . . Parts Damaged . | . . . . . . Bothacking | -11 -10 -10 -10 -9 -8 ------------ Run | Yrd Mat Min Exi Min Mat Used RIF Installer . | . . . . . . Robots Hacked 3 | . 2 1 . . . Non-combat 3 | . 2 1 . . . Combat . | . . . . . . Robot Hacks Applied 3 | . 2 1 . . . no_distress 2 | . 1 1 . . . find_recycling 1 | . 1 . . . . Relay Couplers Released . | . . . . . . Fabnet Peak Effective % . | . . . . . . Robots Rewired . | . . . . . . Allies Hacked . | . . . . . . Hacks Repelled . | . . . . . . Allies | -11 -10 -10 -10 -9 -8 -------- Run | Yrd Mat Min Exi Min Mat Total Allies 4 | . . 3 . 1 . Largest Group 3 | . . 3 . . 1 Highest-Rated Group 40 | . . 40 . . 31 Highest-Rated Ally 31 | . . 16 . . 31 Total Orders . | . . . . . . Ally Attacks . | . . . . . . Total Damage . | . . . . . . Kills . | . . . . . . Allies Corrupted . | . . . . . . Allies Melted . | . . . . . . Intel | -11 -10 -10 -10 -9 -8 ------- Run | Yrd Mat Min Exi Min Mat Active Infowar (turns) 281 | . . . . . 281 Sensors 281 | . . . . . 281 Robot Analysis Total . | . . . . . . Derelict Logs Recovered 1 | . . 1 . . . Drone Launches . | . . . . . . Drone Recoveries . | . . . . . . Exploration | -11 -10 -10 -10 -9 -8 ------------- Run | Yrd Mat Min Exi Min Mat Turns Passed 2343 | 114 1041 260 16 37 875 Spaces Moved 1635 | 87 566 339 42 75 526 Core 23 | 18 . . . . 5 Treads 538 | . 487 31 . . 20 Legs 435 | 69 79 . . . 287 Wheels 144 | . . . . . 144 Hover . | . . . . . . Flight 495 | . . 308 42 75 70 Fastest Speed 37 | 50 120 37 37 37 40 Average Speed 107 | 110 154 48 37 37 108 Slowest Speed 250 | 120 160 160 37 40 250 Overloaded Moves . | . . . . . . Propulsion Burnouts . | . . . . . . Robots Hopped . | . . . . . . Potential Cave-ins . | . . . . . . Cave-ins Triggered . | . . . . . . Exploration Rate (%) 31 | 4 68 66 8 22 22 Regions Visited 5 Branch Regions 3 Pre-discovered Areas 2 | . . 1 . . 1 Known Exits Taken . | . . . . . . Unknown Exits Taken 5 | 1 1 1 1 1 . Scrap Searched 1 | . . . . 1 . Spaces Dug 5 | . . . . . 5 Terrain Destroyed 125 | . 29 . . 9 87 Melee . | . . . . . . Projectile 25 | . . . . . 25 AOE 100 | . 29 . . 9 62 Terrain Rammed . | . . . . . . Walls Destroyed . | . . . . . . Machines Disabled . | . . . . . . Actions | -11 -10 -10 -10 -9 -8 --------- Run | Yrd Mat Min Exi Min Mat Total 1985 | 105 649 403 41 81 706 Wait 41 | 2 3 6 . . 30 Move 1630 | 86 565 338 41 74 526 Hop . | . . . . . . Pick Up 55 | 10 11 8 . . 26 Fast Attach 6 | . . 1 . . 5 Attach 36 | 6 3 1 . 3 23 Detach 1 | . . . . 1 . Swap 15 | . 5 6 . . 4 Drop 29 | . 5 9 . 1 14 Fire 147 | . 54 29 . 2 62 Melee 21 | . 3 5 . . 13 Ram . | . . . . . . Kick 1 | 1 . . . . . Crush . | . . . . . . Escape Stasis . | . . . . . . Rewire . | . . . . . . Trap 3 | . . . . . 3 Miscellaneous . | . . . . . . Route ------- -11/Scrapyard -10/Materials -10/Mines -10/Exiles -9/Mines -8/Materials History --------- Turn | Location | Event 2 | -11/Scrapyard | Met Revision 17 14 | -11/Scrapyard | Discovered new exit (range 15) 115 | -11/Scrapyard | Entered Materials 237 | -10/Materials | Core integrity fell below 50% 314 | -10/Materials | Build established: Mutant 400 | -10/Materials | Discovered new exit (range 11) 1156 | -10/Materials | Entered Mines 1256 | -10/Mines | Core integrity fell below 20% 1294 | -10/Mines | Found a hidden stash of uninstalled traps 1310 | -10/Mines | Received a Rocket Launcher from a helpful Derelict 1327 | -10/Mines | Assisted by bots powering up and referring to "LRC-V3" 1339 | -10/Mines | A weapon hastily lodged in a ceiling crevice suddenly fell to the ground 1398 | -10/Mines | Learned location of Zion (-7) 1414 | -10/Mines | Deemed a non-threat by the Exiles lab entrance 1414 | -10/Mines | Discovered new exit (range 5) 1416 | -10/Mines | Entered Exiles 1425 | -10/Exiles | Discovered new exit (range 15) 1432 | -10/Exiles | Entered Mines 1434 | -9/Mines | Met a Derelict bent on vengeance 1438 | -9/Mines | Assembled infested the area 1460 | -9/Mines | Discovered new exit (range 8) 1466 | -9/Mines | Escorted by a lone wolf Derelict 1469 | -9/Mines | Entered Materials 1469 | -8/Materials | Accompanied by 1 ally 1469 | -8/Materials | Evolved 4 slots: Power x1, Propulsion x1, Utility x1, Weapon x1 1486 | -8/Materials | Learned location of Storage (-7) 1499 | -8/Materials | Lost 4 parts (1p2n1w) 1746 | -8/Materials | Core integrity fell below 50% 1783 | -8/Materials | Lost 9 parts (1p3n1u4w) 2002 | -8/Materials | Lost 3 parts (1n1u1w) 2285 | -8/Materials | Core integrity fell below 20% 2304 | -8/Materials | Lost 5 parts (2p1n1u1w) 2344 | -8/Materials | Destroyed by X-57 Shotgunner with High-powered Shotgun Last Messages --------------- 02269_ Lgt. Nuclear Core destroyed. 02270_ K-01 Serf collects debris. 02271_ Adv. Beam Rifle destroyed. 02271_ Critical hit (Blast). 02271_ Knocked back. 02272_ Acquired 1 matter. 02272_ U-05 Engineer builds a Wall. 02272_ Acquired 20 matter. 02273_ Reflective Plating destroyed. 02273_ Knocked back. 02280_ K-01 Serf collects debris. 02285_ U-05 Engineer builds a Wall. 02286_ S-10 Pest destroyed. 02289_ Targeting Computer melted. 02289_ H-61 Shepherd destroyed. 02289_ U-05 Engineer builds a Wall. 02295_ K-01 Serf collects debris. 02309_ R-06 Scavenger collects Adv. Beam Rifle. 02310_ Acquired 17 matter. 02310_ Carbon-fiber Leg destroyed. Map ----- +----------------------------------------------------+ | ?" + ####### = !##???????????????# # ## | | ???# # ????????????###### #### ## | | ???# = ########????### # # | | ???# # [#????# # ! # | | ???# #######% # """ #???## # !+! + | | ???# ???????## ## " "" #???# ! % # ! | | ???# ?????????# ## """ #???# #= # | | ??????????????# ##! = #???# # [ # # | | ???????#??????# =## #???## # # ## | | ???????# = # ##+#/########### ####### | | ???????# # + [ #?????# | | ???????# # ################# ######?????## | | ???????#??? # # """ #?# ######???????????? | | ??????????"" ?# # "T" #?##?????????????????? | | ?????????""" ?# # """ #????????????????????? | | ?????????"""??# + """ #????????????????????? | | ?????????? ??# # """ #????????????????????? | | ??????????????# # ! #????????????????????? | | ??????????????# # #????????????????????? | | ??????????????# # #????????????????????? | | ??????????????# ######+#########???????????????? | | ??????????????# #????# ## #???????????????? | | ??????????????# #???## ## #???????????????? | | ??????????????# ##### # #???????????????? | | ?????????????"" T + #???????????????? | | ?????????????"Y ##### @# * [ #???????????????? | | ??????????????" ##????##x## =#???????????????? | | ??????????????# ???????#x#########???????????????? | | ??????????????# ???????# #???????????????????????? | | ??????????????# ???????# #???????????????????????? | | ???????????????????????# #???????????????????????? | | ????????????????????####/####????????????????????? | | ????????????????????# #????????????????????? | | ????????????????????# [ [#????????????????????? | | ????????????????????# #????????????????????? | | ????????????????????# =% #????????????????????? | | ????????????????????# !![[= #????????????????????? | | ????????????????????#####/###????????????????????? | | ????????????????#######]*!=%#????????????????????? | | ????????? !!!%] #????????????????????? | | ????????? =*%= + ???????????????? | | ????????? [ # """????????????? | | ??????????# ####### # """????????????? | | ??????????## ????????#######? ???????????? | | ???????????#???????????????????#######???????????? | | ?????????????????????????????????????????????????? | | ?????????????????????????????????????????????????? | | ?????????????????????????????????????????????????? | | ?????????????????????????????????????????????????? | | ?????????????????????????????????????????????????? | +----------------------------------------------------+ Best States ------------- Heat Dissipation 31 Energy Generation 23 Energy Capacity 220 Matter Stores 500 Matter Capacity 500 Sight Range 16 Robot Scan Range 15 Terrain Scan Density 10 Additional Mass Support 6 Armor Coverage 150 Resistance: TH 10 Evasion (%) 63 Recoil Reduction 2 Item Schematics ----------------- None Robot Schematics ------------------ None Fabricated ------------ Nothing Repaired ---------- Nothing Studied --------- None Alien Tech Used ----------------- None Achievements -------------- For Emergencies Only Heavy Suspicion Junior Dev Not Today, Chutes Overwhelming Resistances Are Futile You Again Challenges ------------ None Game ------ Seed HeavyGyrokineticRay Manual? 0 Play Time 00:35:31 Cumulative 19.3 hours Start 2025.11.08 @ 21:39:41 End 2025.11.08 @ 22:13:32 Sessions 1 Manual Loads 0 Difficulty Rogue Special Mode None Game No. 41 Rogue 41 Adventurer 0 Explorer 0 Win Type - Total 0 Types 0/0/0/0/0/0/0/0/0/0 Lore% 9 Gallery% 23 Achievement% 12 Wizard Run 0 Options --------- Layout 1 ASCII 0 Keyboard 0 Movement Arrows Keybinds 0 Fullscreen 1 Font 24/Smallcaps Map View 50x35 Zoom Use 0% Tactical HUD 1 Map Filters NONE Filters NONE Steam 1 RUN: 8872b6c8-792a-4932-b2da-c8d36d7491cb